bitfinex-derivatives/quotes_BTCF0:USTF0_20241218
["timestamp","ask_amount","ask_price","bid_price","bid_amount"]
[1734525929607,0.09649614,104970.0,104960.0,0.554184]
[1734525930317,0.09749614,104970.0,104960.0,0.554184]
[1734525930615,0.09749614,104970.0,104960.0,1.00227008]
[1734525930807,0.09749614,104970.0,104960.0,1.04140002]
[1734525931305,0.09749614,104970.0,104960.0,1.00227008]
[1734525931509,0.09749614,104970.0,104960.0,1.0417814]
[1734525932612,0.01209571,104970.0,104960.0,1.26987633]
[1734525932808,0.08540043,104980.0,104970.0,0.047639]
[1734525932809,0.077761,104980.0,104970.0,0.047639]
[1734525933013,0.11494242,104990.0,104980.0,0.047635]
[1734525933320,0.11494242,104990.0,104980.0,0.56826108]
[1734525933918,0.11503789,104990.0,104980.0,0.56826108]
[1734525934408,0.00112547,104990.0,104980.0,0.56826108]
[1734525935313,0.00212547,104990.0,104980.0,0.56826108]
[1734525935513,0.00212547,104990.0,104980.0,0.79542746]
[1734525935716,0.00312547,104990.0,104980.0,0.79542746]
[1734525935916,0.00312547,104990.0,104980.0,0.86712746]
[1734525937521,0.00209547,104990.0,104980.0,0.86712746]
[1734525937721,0.00209547,104990.0,104980.0,0.63996108]
[1734525938318,0.00209547,104990.0,104980.0,2.13996108]
[1734525938512,0.00209547,104990.0,104980.0,2.14930957]
[1734525939317,0.00109547,104990.0,104980.0,2.14930957]
[1734525940019,9.547e-05,104990.0,104980.0,2.14930957]
[1734525940523,0.101,105000.0,104990.0,0.04763]
[1734525940707,0.101,105000.0,104990.0,0.57131608]
[1734525941020,0.66496021,105020.0,105000.0,0.047625]
[1734525941021,0.11534121,105020.0,105000.0,0.047625]
[1734525941217,0.11534121,105020.0,105010.0,0.49570708]
[1734525941418,0.1154209,105020.0,105010.0,0.49574708]
[1734525942522,0.11399211,105020.0,105010.0,0.49574708]
[1734525942822,0.00107969,105020.0,105010.0,0.49574708]
[1734525943323,0.00207969,105020.0,105010.0,0.57134708]
[1734525943917,0.00207969,105020.0,105010.0,2.07134708]
[1734525944616,0.00207969,105020.0,105010.0,2.43214708]
[1734525944809,0.00207969,105020.0,105010.0,2.50394708]
[1734525945819,0.00107969,105020.0,105010.0,2.50394708]
[1734525946216,0.01,105030.0,105020.0,0.047617]
[1734525946523,0.01,105030.0,105020.0,0.49574308]
[1734525947313,0.01110684,105030.0,105020.0,0.49574308]
[1734525947619,0.00110684,105030.0,105020.0,0.49574308]
[1734525948126,0.00210684,105030.0,105020.0,0.49574308]
[1734525948415,0.11503242,105050.0,105040.0,0.047608]
[1734525948720,0.11503242,105050.0,105040.0,0.85653408]
[1734525948921,0.11503242,105050.0,105040.0,1.00453408]
[1734525949117,0.00112,105050.0,105040.0,1.00453408]
[1734525949317,0.00122308,105050.0,105040.0,2.50453408]
[1734525950926,0.00222308,105050.0,105040.0,2.50453408]
[1734525951418,0.00122308,105050.0,105040.0,2.50453408]
[1734525951612,0.00122308,105050.0,105040.0,2.58473408]
[1734525953522,0.00122308,105050.0,105040.0,2.59439026]
[1734525956023,0.00122308,105050.0,105040.0,0.78490418]
[1734525956218,0.12562608,105050.0,105040.0,0.414448]
[1734525956526,0.12562608,105050.0,105040.0,1.914448]
[1734525957926,0.12562608,105050.0,105040.0,1.553648]
[1734525959224,0.07802308,105050.0,105040.0,1.553648]
[1734525960123,0.21291216,105050.0,105040.0,1.553648]
[1734525960324,0.12562608,105050.0,105040.0,1.553648]
[1734525960829,0.21291216,105050.0,105040.0,1.553648]
[1734525961636,0.98762458,105050.0,105040.0,1.553648]
[1734525962520,0.68762458,105050.0,105040.0,1.553648]
[1734525962919,0.71582522,105050.0,105040.0,1.553648]
[1734525964928,0.71582522,105050.0,105040.0,1.50604]
[1734525966334,0.88654094,105050.0,105040.0,1.50604]
[1734525967127,0.79925486,105050.0,105040.0,1.553648]
[1734525967437,0.6571418,105050.0,105040.0,1.553648]
[1734525968437,0.74442788,105050.0,105040.0,1.50604]
[1734525968738,0.75870789,105050.0,105040.0,1.50604]
[1734525969127,0.75870789,105050.0,105040.0,0.00604]
[1734525971637,0.75870789,105050.0,105040.0,0.053648]
[1734525972230,0.75758789,105050.0,105040.0,0.053648]
[1734525972531,0.67030181,105050.0,105040.0,0.053648]
[1734525973326,0.6560218,105050.0,105040.0,0.051648]
[1734525973532,0.2184218,105050.0,105040.0,0.051648]
[1734525973736,0.2184218,105050.0,105040.0,0.646648]
[1734525974342,0.2184218,105050.0,105040.0,0.642648]
[1734525974833,0.18997754,105050.0,105040.0,0.642648]
[1734525975040,0.18997754,105050.0,105040.0,0.646648]
[1734525975830,0.18997754,105050.0,105040.0,0.648648]
[1734525976638,0.18997754,105050.0,105040.0,2.148648]
[1734525976833,0.27726362,105050.0,105040.0,1.50604]
[1734525977132,0.71586362,105050.0,105040.0,0.00604]
[1734525977739,1.01586362,105050.0,105040.0,0.002]
[1734525977942,0.047612,105030.0,105020.0,0.125817]
[1734525978145,0.13489808,105030.0,105020.0,1.625817]
[1734525978343,0.047692,105030.0,105020.0,1.625817]
[1734525978643,0.047692,105030.0,105020.0,1.986617]
[1734525979236,0.048692,105030.0,105020.0,1.994617]
[1734525979443,0.36174839,105030.0,105020.0,1.994617]
[1734525980434,0.36174839,105030.0,105020.0,1.998617]
[1734525980639,0.19103267,105030.0,105020.0,1.998617]
[1734525984751,0.14342067,105030.0,105020.0,0.65760308]
[1734525985139,0.21832572,105040.0,105030.0,0.047612]
[1734525985543,0.21832572,105040.0,105030.0,0.047652]
[1734525985743,0.3056118,105040.0,105030.0,0.047652]
[1734525986341,0.3056118,105040.0,105030.0,0.053652]
[1734525986544,0.13489608,105040.0,105030.0,0.053652]
[1734525987646,0.49569608,105040.0,105030.0,0.053652]
[1734525987853,0.04761,105040.0,105030.0,0.053652]
[1734525988354,0.04761,105040.0,105030.0,0.132452]
[1734525990454,0.40841,105040.0,105030.0,0.132452]
[1734525991457,0.40841,105040.0,105030.0,0.08484]
[1734525992156,0.49569608,105040.0,105030.0,0.00604]
[1734525992761,1.02615727,105040.0,105030.0,0.00604]
[1734525993059,0.93887119,105040.0,105030.0,0.00604]
[1734525994254,0.63887119,105040.0,105030.0,0.00604]
[1734525995460,0.47888511,105040.0,105030.0,0.00604]
[1734525995765,0.56617119,105040.0,105030.0,0.00604]
[1734525996455,0.73711613,105040.0,105030.0,0.00604]
[1734525997560,0.56617119,105040.0,105030.0,0.00604]
[1734525998262,0.47888511,105040.0,105030.0,0.053652]
[1734525998958,0.40848511,105040.0,105030.0,0.053652]
[1734525999160,0.40848511,105040.0,105030.0,0.125752]
[1734526000260,0.49577119,105040.0,105030.0,0.125752]
[1734526000773,0.49577119,105040.0,105030.0,0.07814]
[1734526001560,0.49577119,105040.0,105030.0,0.00604]
[1734526001862,0.79577119,105040.0,105030.0,0.00604]
[1734526002675,0.96671613,105040.0,105030.0,0.00604]
[1734526003165,1.12491613,105040.0,105030.0,0.00604]
[1734526005676,0.82491613,105040.0,105030.0,0.00604]
[1734526007178,0.66671613,105040.0,105030.0,0.00604]
[1734526007378,1.01851613,105040.0,105030.0,0.00604]
[1734526007880,1.01851613,105040.0,105030.0,1.50604]
[1734526008080,1.01851613,105040.0,105030.0,0.00604]
[1734526008271,1.03283614,105040.0,105030.0,0.00604]
[1734526008585,1.01851613,105040.0,105030.0,0.00604]
[1734526008965,1.03283614,105040.0,105030.0,0.00604]
[1734526009372,1.39363614,105040.0,105030.0,0.00604]
[1734526009580,0.67203614,105040.0,105030.0,0.00604]
[1734526009779,1.39363614,105040.0,105030.0,0.00604]
[1734526010767,1.46553614,105040.0,105030.0,0.00604]
[1734526011182,1.39363614,105040.0,105030.0,0.00604]
[1734526012081,1.13540512,105040.0,105030.0,0.053652]
[1734526012379,1.2226912,105040.0,105030.0,0.04504168]
[1734526013869,1.12108511,105040.0,105030.0,0.04504168]
[1734526014074,1.12108511,105040.0,105030.0,0.11964168]
[1734526014274,1.29209779,105040.0,105030.0,0.11964168]
[1734526014780,1.37938387,105040.0,105030.0,0.11964168]
[1734526015582,1.35089499,105040.0,105030.0,0.11964168]
[1734526016085,1.36089499,105040.0,105030.0,0.11964168]
[1734526016883,1.36089499,105040.0,105030.0,1.61964168]
[1734526018182,1.53190767,105040.0,105030.0,0.11964168]
[1734526018379,1.44462159,105040.0,105030.0,0.11964168]
[1734526018977,1.30209779,105040.0,105030.0,0.11964168]
[1734526019785,0.94129779,105040.0,105030.0,0.11964168]
[1734526020478,1.02858387,105040.0,105030.0,0.0746]
[1734526022385,1.10118387,105040.0,105030.0,0.0746]
[1734526022889,0.047612,105030.0,105020.0,1.80134113]
[1734526023095,0.49569808,105030.0,105020.0,1.72764113]
[1734526023385,0.49577808,105030.0,105020.0,0.22764113]
[1734526023688,0.66679076,105030.0,105010.0,1.92266113]
[1734526023873,0.047617,105020.0,105010.0,1.92266113]
[1734526024079,0.047697,105020.0,105010.0,1.92266113]
[1734526024994,0.19025014,105020.0,105010.0,1.92266113]
[1734526025687,0.19125014,105020.0,105010.0,1.93166113]
[1734526026492,0.19225014,105020.0,105010.0,1.94066113]
[1734526027091,0.27953622,105020.0,105010.0,1.94066113]
[1734526030890,0.27953622,105020.0,105010.0,1.89304113]
[1734526033596,0.27953622,105020.0,105010.0,1.94066213]
[1734526033993,0.19225014,105020.0,105010.0,1.94066213]
[1734526034887,0.64033622,105020.0,105010.0,1.82024113]
[1734526035293,0.55305014,105020.0,105010.0,1.85945667]
[1734526035495,0.55305014,105020.0,105010.0,1.89494113]
[1734526035797,0.19225014,105020.0,105010.0,1.89494113]
[1734526036297,0.19225014,105020.0,105010.0,1.94256213]
[1734526037389,0.19225014,105020.0,105010.0,0.36786213]
[1734526037588,0.19225014,105020.0,105010.0,0.43646213]
[1734526037789,0.19225014,105020.0,105010.0,0.79726213]
[1734526037991,0.14463314,105020.0,105010.0,2.29726213]
[1734526038896,0.1161119,105020.0,105010.0,2.35192229]
[1734526041701,0.1637289,105020.0,105010.0,2.35192229]
[1734526043096,0.1637289,105020.0,105010.0,1.99112229]
[1734526043404,0.1637289,105020.0,105010.0,2.35192229]
[1734526043593,0.1161119,105020.0,105010.0,2.35192229]
[1734526046901,0.1161119,105020.0,105010.0,0.85192229]
[1734526047303,0.1161119,105020.0,105010.0,2.35192229]
[1734526047497,0.1161119,105020.0,105010.0,2.43920837]
[1734526048497,0.00208,105020.0,105010.0,2.78143235]
[1734526053808,0.08759178,105020.0,105010.0,2.78143235]
[1734526056707,0.08759178,105020.0,105010.0,3.08143235]
[1734526058007,0.00208,105020.0,105010.0,2.49913106]
[1734526064305,0.00208,105020.0,105010.0,2.41184498]
[1734526065514,0.00208,105020.0,105010.0,2.49913106]
[1734526066021,0.00208,105020.0,105010.0,2.46897215]
[1734526066414,0.08759178,105020.0,105010.0,2.75425788]
[1734526068515,0.20162368,105020.0,105010.0,2.75425788]
[1734526069924,0.08759178,105020.0,105010.0,2.75425788]
[1734526071023,0.08759178,105020.0,105010.0,2.46897215]
[1734526073824,0.08759178,105020.0,105010.0,2.29562398]
[1734526073825,0.20184612,105020.0,105010.0,2.29562398]
[1734526074018,0.31936312,105020.0,105010.0,0.72102398]
[1734526074215,0.31836312,105020.0,105010.0,0.71202398]
[1734526074426,0.39216312,105020.0,105010.0,0.72102398]
[1734526074630,0.33503595,105020.0,105010.0,2.22102398]
[1734526074924,0.33503595,105020.0,105010.0,2.26864498]
[1734526075126,0.33403595,105020.0,105010.0,2.25964498]
[1734526075317,0.33503595,105020.0,105010.0,2.26864498]
[1734526075828,0.39207731,105020.0,105010.0,2.1547538]
[1734526076417,0.33495014,105020.0,105010.0,2.1547538]
[1734526077631,0.39207731,105020.0,105010.0,2.1547538]
[1734526078224,0.40207731,105020.0,105010.0,2.1547538]
[1734526079227,0.25952417,105020.0,105010.0,2.1547538]
[1734526080316,0.37344373,105020.0,105010.0,2.1547538]
[1734526081221,0.30064373,105020.0,105010.0,2.1547538]
[1734526083727,0.30064373,105020.0,105010.0,2.19391736]
[1734526084128,0.30056373,105020.0,105010.0,2.19391736]
[1734526084934,0.30056373,105020.0,105010.0,2.23601736]
[1734526086030,0.30056373,105020.0,105010.0,1.78549636]
[1734526086031,0.3576909,105020.0,105010.0,1.78549636]
[1734526086233,1.08516035,105020.0,105000.0,0.285416]
[1734526086527,0.56138084,105010.0,105000.0,0.15331942]
[1734526086931,0.86138084,105010.0,105000.0,0.15331942]
[1734526087235,1.07660251,105010.0,105000.0,4.2e-07]
[1734526087633,0.905221,105010.0,105000.0,4.2e-07]
[1734526088039,0.905221,105010.0,104990.0,0.01010547]
[1734526088040,0.047626,105000.0,104990.0,0.01010547]
[1734526088227,0.76035617,105000.0,104990.0,0.01010547]
[1734526088428,1.07467618,105000.0,104990.0,0.01010547]
[1734526088830,1.24605769,105000.0,104990.0,0.01010547]
[1734526089039,1.24613769,105000.0,104990.0,0.01010547]
[1734526089836,1.18901052,105000.0,104990.0,0.01010547]
[1734526090039,1.24905208,105000.0,104990.0,0.01010547]
[1734526090335,1.24915208,105000.0,104990.0,0.01010547]
[1734526090534,1.42042859,105000.0,104990.0,0.01110547]
[1734526090740,0.047635,104980.0,104970.0,0.089338]
[1734526091043,0.49557995,104990.0,104980.0,0.047635]
[1734526091435,0.49557995,104990.0,104980.0,0.047675]
[1734526091835,0.49557995,104990.0,104980.0,0.088275]
[1734526092544,0.60899919,104990.0,104980.0,0.088275]
[1734526093232,0.60999919,104990.0,104980.0,0.088275]
[1734526093539,0.60999919,104990.0,104980.0,0.04064]
[1734526093740,0.61099919,104990.0,104980.0,1.54064]
[1734526094043,0.61099919,104990.0,104980.0,0.04064]
[1734526094339,0.50717334,104990.0,104980.0,1.54064]
[1734526096240,0.50717334,104990.0,104980.0,1.588275]
[1734526096944,0.50717334,104990.0,104980.0,1.54064]
[1734526097160,0.62050732,104990.0,104980.0,0.04064]
[1734526098344,0.70545528,104990.0,104980.0,0.04064]
[1734526098543,1.00545528,104990.0,104980.0,4e-05]
[1734526099243,0.92050732,104990.0,104980.0,4e-05]
[1734526099744,0.62050732,104990.0,104980.0,4e-05]
[1734526099946,0.62050732,104990.0,104980.0,0.08124]
[1734526105244,0.78106777,104990.0,104980.0,0.08124]
[1734526107351,0.66773379,104990.0,104980.0,0.08124]
[1734526108350,0.6820538,104990.0,104980.0,0.08124]
[1734526109956,0.70930525,104990.0,104980.0,0.08124]
[1734526110457,0.70941159,104990.0,104980.0,0.08124]
[1734526111149,0.69051862,104990.0,104980.0,0.08124]
[1734526111949,0.71885211,104990.0,104980.0,0.08124]
[1734526113953,0.69161461,104990.0,104980.0,0.08124]
[1734526114854,0.71113074,104990.0,104980.0,0.08124]
[1734526115257,0.54112977,104990.0,104980.0,0.08124]
[1734526116266,0.73946424,104990.0,104980.0,0.08124]
[1734526117154,0.95460038,104990.0,104980.0,0.08124]
[1734526118361,0.95460038,104990.0,104970.0,0.04271501]
[1734526118665,0.50315004,104980.0,104970.0,0.00248818]
[1734526118864,0.4955969,104980.0,104970.0,0.00248818]
[1734526119165,0.4955969,104980.0,104970.0,0.04271989]
[1734526119465,0.4955969,104980.0,104970.0,0.00248818]
[1734526119857,0.4965969,104980.0,104970.0,0.00348818]
[1734526120865,0.4965969,104980.0,104970.0,0.00448818]
[1734526121669,0.4975969,104980.0,104970.0,0.00448818]
[1734526121854,0.4975969,104980.0,104970.0,0.12392045]
[1734526122366,0.8495969,104980.0,104970.0,0.12392045]
[1734526122663,0.8495969,104980.0,104970.0,0.17155945]
[1734526122860,0.8495969,104980.0,104970.0,0.13132718]
[1734526123061,0.401635,104980.0,104970.0,0.13132718]
[1734526123363,0.13604081,104990.0,104970.0,0.92692808]
[1734526123565,0.07274081,104990.0,104980.0,0.4955969]
[1734526123752,0.00944081,104990.0,104980.0,0.408475]
[1734526123953,0.00944081,104990.0,104980.0,0.44870727]
[1734526124159,0.00944081,104990.0,104980.0,0.408475]
[1734526124459,0.14356017,104990.0,104980.0,0.408475]
[1734526124665,0.14456017,104990.0,104980.0,0.408475]
[1734526126261,0.14456017,104990.0,104980.0,0.412475]
[1734526126556,0.16362107,104990.0,104980.0,0.412475]
[1734526126952,0.16362107,104990.0,104980.0,1.912475]
[1734526128262,0.11599107,104990.0,104980.0,1.912475]
[1734526128757,0.11599107,104990.0,104980.0,1.9996369]
[1734526129566,0.11599107,104990.0,104980.0,1.912475]
[1734526130570,0.20134283,104990.0,104980.0,1.912475]
[1734526131257,0.08742441,104990.0,104980.0,1.9996369]
[1734526133274,0.08742441,104990.0,104980.0,1.912475]
[1734526133962,0.00207265,104990.0,104980.0,1.912475]
[1734526134267,0.04970265,104990.0,104980.0,1.912475]
[1734526137871,0.04970265,104990.0,104980.0,1.95158406]
[1734526138069,0.04970265,104990.0,104980.0,2.00874999]
[1734526139175,0.04970265,104990.0,104980.0,1.95158406]
[1734526140869,0.04970265,104990.0,104980.0,2.00874999]
[1734526141067,0.04970265,104990.0,104980.0,1.96964093]
[1734526141464,0.13505441,104990.0,104980.0,1.96964093]
[1734526142864,0.13505441,104990.0,104980.0,1.912475]
[1734526143875,0.55302034,104990.0,104980.0,0.00404]
[1734526144072,0.72588627,104990.0,104980.0,0.00404]
[1734526144277,1.02588627,104990.0,104980.0,0.00404]
[1734526145971,1.11151953,104990.0,104980.0,0.00404]
[1734526146471,0.047639,104970.0,104960.0,1.51]
[1734526146671,0.46560493,104970.0,104960.0,1.51]
[1734526146873,0.46568493,104970.0,104960.0,1.51]
[1734526147575,0.46668493,104970.0,104960.0,1.512]
[1734526147872,0.46768493,104970.0,104960.0,1.514]
[1734526148065,0.49768273,104970.0,104960.0,1.514]
[1734526148267,0.66300469,104970.0,104960.0,0.014]
[1734526148472,1.05516469,104970.0,104960.0,0.014]
[1734526149167,1.41596469,104970.0,104960.0,0.014]
[1734526149368,1.55786168,104970.0,104960.0,0.014]
[1734526150175,1.55686168,104970.0,104960.0,0.012]
[1734526150473,1.56386168,104970.0,104960.0,0.01]
[1734526150879,1.45034409,104970.0,104960.0,0.01]
[1734526151079,1.45985631,104970.0,104960.0,0.01]
[1734526152981,1.57321334,104970.0,104960.0,0.01]
[1734526154182,2.00057707,104970.0,104940.0,0.00011574]
[1734526154474,0.85649173,104950.0,104940.0,0.00011574]
[1734526154666,0.94365546,104950.0,104940.0,0.00011574]
[1734526154870,0.98107724,104950.0,104940.0,0.00011574]
[1734526155263,0.89391351,104950.0,104940.0,0.00011574]
[1734526155469,0.93031351,104950.0,104940.0,0.00011574]
[1734526155674,1.12962448,104950.0,104940.0,0.00011574]
[1734526156974,0.047657,104930.0,104920.0,0.17061984]
[1734526157168,0.84766073,104930.0,104920.0,0.17061984]
[1734526157368,0.047662,104920.0,104910.0,0.65668584]
[1734526157579,0.047662,104920.0,104910.0,2.15668584]
[1734526157780,0.047742,104920.0,104910.0,2.15668584]
[1734526157978,0.13490573,104920.0,104910.0,2.10901984]
[1734526158273,0.13501113,104920.0,104910.0,0.17061984]
[1734526158579,0.047667,104910.0,104900.0,0.27061984]
[1734526158878,0.49571073,104910.0,104900.0,0.27061984]
[1734526159678,0.49571073,104910.0,104900.0,0.1]
[1734526159870,0.49671073,104910.0,104900.0,0.1]
[1734526160070,0.49771073,104910.0,104900.0,0.147671]
[1734526161274,0.49771073,104910.0,104900.0,0.1]
[1734526161482,0.58487446,104910.0,104900.0,0.1]
[1734526161686,0.49771073,104910.0,104900.0,0.1]
[1734526162168,0.58487446,104910.0,104900.0,0.1]
[1734526162571,0.62467446,104910.0,104900.0,0.1]
[1734526163264,0.62476086,104910.0,104900.0,0.1]
[1734526163482,0.63908087,104910.0,104900.0,0.1]
[1734526164776,0.047676,104890.0,104880.0,7.339e-05]
[1734526164978,0.84787665,104890.0,104880.0,0.00960712]
[1734526165275,0.84795665,104890.0,104880.0,0.00960712]
[1734526165977,0.84895665,104890.0,104880.0,0.00960712]
[1734526166171,0.84995665,104890.0,104880.0,0.00960712]
[1734526168278,0.86427666,104890.0,104880.0,1.50960712]
[1734526168976,0.86427666,104890.0,104880.0,1.55728712]
[1734526169173,0.77711293,104890.0,104880.0,1.55728712]
[1734526171473,0.77711293,104890.0,104880.0,1.50960712]
[1734526171783,0.86427666,104890.0,104880.0,7.339e-05]
[1734526171987,0.90117666,104890.0,104880.0,7.339e-05]
[1734526172585,1.26197666,104890.0,104880.0,7.339e-05]
[1734526173085,1.42017666,104890.0,104880.0,7.339e-05]
[1734526173898,1.13791293,104890.0,104880.0,7.339e-05]
[1734526174186,1.22507666,104890.0,104880.0,0.04775339]
[1734526175178,1.23461438,104890.0,104880.0,0.04775339]
[1734526177187,1.31943443,104890.0,104880.0,0.04775339]
[1734526178784,0.09655469,104890.0,104880.0,0.13491712]
[1734526178989,0.08701697,104890.0,104880.0,0.49571712]
[1734526179295,0.08701697,104890.0,104880.0,2.03482618]
[1734526179987,0.08701697,104890.0,104880.0,1.99571712]
[1734526180292,0.08701697,104890.0,104880.0,2.08288085]
[1734526180293,0.00219692,104890.0,104880.0,2.08288085]
[1734526180484,0.00219692,104890.0,104880.0,1.99571712]
[1734526180886,0.00219692,104890.0,104880.0,2.03743025]
[1734526182900,0.00219692,104890.0,104880.0,2.33743025]
[1734526183785,0.00219692,104890.0,104880.0,2.34713175]
[1734526183982,0.00219692,104890.0,104880.0,2.43429548]
[1734526184180,0.19817708,104910.0,104900.0,0.047671]
[1734526184385,0.19817708,104910.0,104900.0,0.408471]
[1734526184595,0.19817708,104910.0,104900.0,0.408511]
[1734526184799,0.19817708,104910.0,104900.0,1.908511]
[1734526185102,0.19827846,104910.0,104900.0,1.908511]
[1734526185491,0.24794546,104910.0,104900.0,1.909511]
[1734526185689,0.24794546,104910.0,104900.0,1.548711]
[1734526186090,0.24794546,104910.0,104900.0,1.59042413]
[1734526186299,0.24794546,104910.0,104900.0,0.09042413]
[1734526186595,0.25028914,104910.0,104900.0,0.09042413]
[1734526187488,0.39218613,104910.0,104900.0,0.09042413]
[1734526187689,0.75298613,104910.0,104900.0,0.04275313]
[1734526188102,0.79038613,104910.0,104900.0,0.00104]
[1734526188396,0.69134911,104910.0,104900.0,0.00104]
[1734526188901,0.77851284,104910.0,104900.0,0.00104]
[1734526189202,0.77851284,104910.0,104900.0,0.04275935]
[1734526189394,0.69134911,104910.0,104900.0,0.04275935]
[1734526189990,0.54945212,104910.0,104900.0,0.04275935]
[1734526190195,0.63661585,104910.0,104900.0,0.00104]
[1734526190704,0.54945212,104910.0,104900.0,0.00104]
[1734526191003,0.63661585,104910.0,104900.0,0.00104]
[1734526191804,0.047676,104890.0,104880.0,0.04775139]
[1734526192197,0.047756,104890.0,104880.0,0.08947236]
[1734526192803,8e-05,104890.0,104880.0,0.08947236]
[1734526193209,0.00208,104890.0,104880.0,0.09147236]
[1734526193503,0.11548731,104890.0,104880.0,0.53943609]
[1734526193899,0.11548731,104890.0,104880.0,2.03943609]
[1734526194296,0.11548731,104890.0,104880.0,1.95227236]
[1734526194495,0.11548731,104890.0,104880.0,1.59147236]
[1734526194708,0.20054804,104890.0,104880.0,1.7620922]
[1734526194999,0.24822404,104890.0,104880.0,1.7620922]
[1734526195905,0.24822404,104890.0,104880.0,2.1228922]
[1734526196204,0.20054804,104890.0,104880.0,2.1228922]
[1734526196592,0.24822404,104890.0,104880.0,1.7620922]
[1734526197693,0.13481673,104890.0,104880.0,0.2620922]
[1734526197899,0.58278046,104890.0,104880.0,0.2144142]
[1734526198101,0.61987115,104890.0,104880.0,0.17269323]
[1734526198294,0.69717115,104890.0,104880.0,0.17269323]
[1734526198602,0.61211042,104890.0,104880.0,0.2144142]
[1734526198802,0.75386956,104890.0,104880.0,0.04379436]
[1734526199298,0.84103329,104890.0,104880.0,0.04279436]
[1734526199498,0.75386956,104890.0,104880.0,0.00107339]
[1734526201197,0.78222139,104890.0,104880.0,0.00107339]
[1734526202895,0.78122139,104890.0,104880.0,0.00107339]
[1734526203102,0.93942139,104890.0,104880.0,0.00107339]
[1734526203705,0.91097993,104890.0,104880.0,0.00107339]
[1734526204111,0.99814366,104890.0,104880.0,0.00107339]
[1734526204311,0.99814366,104890.0,104860.0,1.71234905]
[1734526204312,0.047685,104870.0,104860.0,1.71234905]
[1734526204512,0.49564873,104870.0,104860.0,1.71234905]
[1734526204699,0.53294873,104870.0,104860.0,1.71234905]
[1734526205004,0.53294873,104870.0,104860.0,1.5]
[1734526205209,0.5330199,104870.0,104860.0,1.5]
[1734526205899,0.047689,104860.0,104850.0,0.3984897]
[1734526206100,0.49565273,104860.0,104850.0,0.44022045]
[1734526206302,0.49573273,104860.0,104850.0,0.44022045]
[1734526206608,0.49573273,104860.0,104850.0,0.17061984]
[1734526206908,0.49573273,104860.0,104850.0,0.21235625]
[1734526207205,0.49673273,104860.0,104850.0,0.21235625]
[1734526207398,0.49673273,104860.0,104850.0,0.17061984]
[1734526207599,0.57193273,104860.0,104850.0,0.17061984]
[1734526207803,0.65916963,104860.0,104850.0,0.21235709]
[1734526207999,0.65916963,104860.0,104850.0,0.17061984]
[1734526208000,0.5720059,104860.0,104850.0,0.17061984]
[1734526208207,0.65695641,104860.0,104850.0,0.04173725]
[1734526208401,0.047694,104850.0,104840.0,1.67061984]
[1734526208603,0.49565773,104850.0,104840.0,1.71235728]
[1734526208809,0.49573773,104850.0,104840.0,1.71235728]
[1734526209110,0.50573773,104850.0,104840.0,1.54173744]
[1734526209507,0.59390146,104850.0,104840.0,1.5]
[1734526209810,0.50773773,104850.0,104840.0,1.5]
[1734526210406,0.420574,104850.0,104840.0,1.5]
[1734526210612,0.419574,104850.0,104840.0,1.58943873]
[1734526210807,0.420574,104850.0,104840.0,1.58943873]
[1734526211207,0.37288,104850.0,104840.0,0.08943873]
[1734526211510,0.059774,104850.0,104840.0,0.45023873]
[1734526211716,0.14693773,104850.0,104840.0,1.58943873]
[1734526213313,0.14693773,104850.0,104840.0,1.5]
[1734526213715,0.50773773,104850.0,104840.0,1.5]
[1734526213910,0.047698,104840.0,104830.0,0.37146157]
[1734526214111,0.13486173,104840.0,104830.0,0.37146157]
[1734526214315,0.49574173,104840.0,104830.0,0.159101]
[1734526214506,0.49574173,104840.0,104830.0,1.659101]
[1734526215305,0.49586287,104840.0,104830.0,1.5366]
[1734526215613,0.49586287,104840.0,104830.0,1.5]
[1734526215614,0.49786287,104840.0,104830.0,1.5]
[1734526215821,0.85022287,104840.0,104830.0,1.5]
[1734526216309,0.85022287,104840.0,104830.0,0.0417432]
[1734526216516,0.84922287,104840.0,104830.0,0.0417432]
[1734526216707,0.85022287,104840.0,104830.0,0.0417432]
[1734526217022,0.85022287,104840.0,104830.0,1.5]
[1734526217316,0.85022287,104840.0,104820.0,0.09651286]
[1734526217510,0.13486673,104830.0,104820.0,0.09651286]
[1734526217716,0.047783,104830.0,104820.0,0.13825663]
[1734526217921,0.047783,104830.0,104820.0,1.63825663]
[1734526218110,0.047783,104830.0,104820.0,1.59054963]
[1734526218111,0.13494673,104830.0,104820.0,1.59054963]
[1734526219517,0.13594673,104830.0,104820.0,1.59054963]
[1734526219728,0.13694673,104830.0,104820.0,1.59054963]
[1734526219916,0.13694673,104830.0,104820.0,1.63825663]
[1734526221010,0.13694673,104830.0,104820.0,1.54880586]
[1734526221915,0.13694673,104830.0,104820.0,1.59054963]
[1734526222109,0.13694673,104830.0,104820.0,1.54880586]
[1734526222309,0.49774673,104830.0,104820.0,1.54880586]
[1734526223713,0.13694673,104830.0,104820.0,1.54880586]
[1734526224019,0.049783,104830.0,104820.0,1.54880586]
[1734526224224,0.049783,104830.0,104820.0,1.59651286]
[1734526225114,0.049783,104830.0,104820.0,1.58651286]
[1734526226318,0.13694673,104830.0,104820.0,1.58651286]
[1734526228316,0.13694673,104830.0,104820.0,1.53880586]
[1734526228517,0.51206674,104830.0,104820.0,1.53880586]
[1734526229617,0.59701725,104830.0,104820.0,1.53880586]
[1734526230611,0.59701725,104830.0,104820.0,0.03880586]
[1734526230808,0.59701725,104830.0,104820.0,0.00010586]
[1734526231321,0.63563231,104830.0,104820.0,0.04184963]
[1734526232018,0.74889966,104830.0,104820.0,0.04184963]
[1734526232316,0.83606339,104830.0,104820.0,0.04184963]
[1734526232525,0.74889966,104830.0,104820.0,0.00010586]
[1734526233021,0.80553333,104830.0,104820.0,0.00010586]
[1734526234209,0.89269706,104830.0,104820.0,0.00010586]
[1734526234412,0.77942971,104830.0,104820.0,0.00010586]
[1734526234715,0.93761465,104830.0,104820.0,0.00010586]
[1734526235812,0.85045092,104830.0,104820.0,0.00010586]
[1734526236521,0.85057421,104830.0,104820.0,0.00010586]
[1734526238723,0.65377421,104830.0,104820.0,0.00010586]
[1734526243023,0.37592145,104830.0,104820.0,0.04781286]
[1734526243217,0.31389844,104830.0,104820.0,0.16806631]
[1734526243728,0.31389844,104830.0,104820.0,1.66806631]
[1734526244522,0.12561575,104830.0,104820.0,1.75523004]
[1734526244721,0.00021575,104830.0,104820.0,2.07427659]
[1734526245016,0.66405515,104840.0,104830.0,0.047703]
[1734526245217,0.31169515,104840.0,104830.0,0.49566673]
[1734526245431,0.18629515,104840.0,104830.0,0.79570673]
[1734526245731,0.18637468,104840.0,104830.0,0.79570673]
[1734526245932,0.08516969,104840.0,104830.0,1.23594988]
[1734526246225,0.08516969,104840.0,104830.0,0.84878615]